bitfinex/quotes_BTCUSD_20240729
["timestamp","ask_amount","ask_price","bid_price","bid_amount"]
[1722257111561,0.39399939,69855.0,69849.0,0.008866]
[1722257111562,0.39399939,69855.0,69854.0,0.002]
[1722257111764,0.24309939,69855.0,69854.0,0.2369]
[1722257111965,0.24309939,69855.0,69854.0,0.2349]
[1722257113448,0.26556289,69855.0,69854.0,0.2349]
[1722257113854,0.24309939,69855.0,69854.0,0.2349]
[1722257114076,0.24409939,69855.0,69854.0,0.2349]
[1722257114770,0.24309939,69855.0,69853.0,0.1538]
[1722257114973,0.39399939,69855.0,69852.0,0.0387]
[1722257115178,0.39499939,69855.0,69854.0,0.003]
[1722257115379,0.39499939,69855.0,69852.0,0.0387]
[1722257115380,0.39399939,69855.0,69852.0,0.0387]
[1722257115795,0.39499939,69855.0,69854.0,0.003]
[1722257116212,0.39599939,69855.0,69854.0,0.011]
[1722257116629,0.002,69855.0,69854.0,0.2399]
[1722257116830,0.001,69855.0,69854.0,0.2319]
[1722257117241,0.02446353,69855.0,69854.0,0.2399]
[1722257117828,0.16756292,69855.0,69854.0,0.2399]
[1722257118300,0.14509939,69855.0,69854.0,0.2399]
[1722257118497,0.14409939,69855.0,69854.0,0.2319]
[1722257119064,0.00795232,69861.0,69860.0,0.0877]
[1722257119290,0.10714,69867.0,69866.0,0.1515]
[1722257119526,0.10714,69867.0,69866.0,0.229]
[1722257119527,0.00714,69867.0,69866.0,0.229]
[1722257119738,0.00714,69867.0,69866.0,0.228]
[1722257121347,0.0295989,69867.0,69866.0,0.228]
[1722257121884,0.00714,69867.0,69866.0,0.231]
[1722257123053,0.00714,69867.0,69866.0,0.245]
[1722257123054,0.00814,69867.0,69866.0,0.245]
[1722257123263,0.00814,69867.0,69866.0,0.242]
[1722257123474,0.00914,69867.0,69866.0,0.256]
[1722257123875,0.15223939,69867.0,69866.0,0.1147]
[1722257125230,0.41164072,69867.0,69866.0,0.028]
[1722257125463,0.51164072,69867.0,69866.0,0.028]
[1722257126116,0.53464072,69867.0,69866.0,0.028]
[1722257126317,0.53464072,69867.0,69866.0,0.014]
[1722257126318,0.53364072,69867.0,69866.0,0.014]
[1722257126521,0.53364072,69867.0,69866.0,0.028]
[1722257126747,0.53364072,69867.0,69866.0,0.014]
[1722257127172,0.27470072,69867.0,69866.0,0.027]
[1722257127389,0.27470072,69867.0,69866.0,0.1137]
[1722257128017,0.27470072,69867.0,69866.0,0.1783]
[1722257128643,0.13160133,69867.0,69866.0,0.18116246]
[1722257128853,0.13160133,69867.0,69866.0,0.1783]
[1722257128854,0.03160133,69867.0,69866.0,0.1783]
[1722257129055,0.00914,69867.0,69866.0,0.24984355]
[1722257130819,0.00914,69867.0,69866.0,0.1783]
[1722257131435,0.15223939,69867.0,69866.0,0.1783]
[1722257132125,0.17469926,69867.0,69866.0,0.1783]
[1722257132344,0.15223939,69867.0,69866.0,0.1783]
[1722257132544,0.00914,69867.0,69866.0,0.1783]
[1722257133175,0.00914,69867.0,69866.0,0.2555]
[1722257133841,0.00914,69867.0,69866.0,0.37286601]
[1722257134061,0.00914,69867.0,69866.0,0.72082032]
[1722257134298,0.00814,69867.0,69866.0,0.35986601]
[1722257134531,0.00714,69867.0,69866.0,0.92282527]
[1722257134756,0.00714,69867.0,69866.0,0.69295426]
[1722257134986,0.00814,69867.0,69866.0,0.70495426]
[1722257135228,0.00814,69867.0,69866.0,0.48994526]
[1722257135229,0.00914,69867.0,69866.0,0.48994526]
[1722257135457,0.00914,69867.0,69866.0,0.36144126]
[1722257135458,0.00814,69867.0,69866.0,0.36144126]
[1722257135675,0.00814,69867.0,69866.0,0.47594526]
[1722257135905,0.03059656,69867.0,69866.0,0.70495426]
[1722257136368,0.03059656,69867.0,69866.0,0.47594498]
[1722257136575,0.03059656,69867.0,69866.0,0.36144098]
[1722257136816,0.03059656,69867.0,69866.0,0.1945]
[1722257137215,0.03059656,69867.0,69866.0,0.2425]
[1722257137675,0.03059656,69867.0,69866.0,0.2285]
[1722257137676,0.02959656,69867.0,69866.0,0.2285]
[1722257137897,0.00714,69867.0,69866.0,0.2425]
[1722257138375,0.00714,69867.0,69866.0,0.1793]
[1722257138594,0.15023939,69867.0,69866.0,0.1147]
[1722257138842,0.40113939,69867.0,69866.0,0.028]
[1722257139284,0.40113939,69867.0,69866.0,0.1147]
[1722257139285,0.25023939,69867.0,69866.0,0.1147]
[1722257140772,0.27270052,69867.0,69866.0,0.1147]
[1722257140991,0.27270052,69867.0,69866.0,0.1007]
[1722257141411,0.27270052,69867.0,69866.0,0.0987]
[1722257141630,0.27270052,69867.0,69866.0,0.1117]
[1722257141835,0.27270052,69867.0,69866.0,0.0637]
[1722257142045,0.40113939,69867.0,69866.0,0.025]
[1722257142259,0.40113939,69867.0,69866.0,0.012]
[1722257142476,0.40113939,69867.0,69865.0,0.0867]
[1722257142688,0.24465359,69866.0,69865.0,0.0867]
[1722257145281,0.26556127,69866.0,69865.0,0.0867]
[1722257145499,0.26656126,69866.0,69865.0,0.1007]
[1722257145946,0.26556127,69866.0,69865.0,0.0867]
[1722257146167,0.48003939,69866.0,69865.0,0.014]
[1722257146589,0.48003939,69866.0,69865.0,0.028]
[1722257146803,0.55931556,69866.0,69865.0,0.028]
[1722257147252,0.67351556,69866.0,69865.0,0.028]
[1722257147945,0.7285498,69866.0,69865.0,0.028]
[1722257148167,0.74998374,69866.0,69865.0,0.028]
[1722257148629,0.687248,69866.0,69865.0,0.028]
[1722257148844,0.68824799,69866.0,69865.0,0.028]
[1722257149271,0.687248,69866.0,69865.0,0.028]
[1722257149501,0.68782813,69866.0,69865.0,0.014]
[1722257149708,0.23694,69864.0,69854.0,0.0867]
[1722257149926,0.23694,69860.0,69854.0,0.0867]
[1722257150148,0.1509,69858.0,69854.0,0.0867]
[1722257150366,0.39399939,69857.0,69852.0,0.468924]
[1722257150567,0.0759,69855.0,69852.0,0.000924]
[1722257150784,0.29399939,69854.0,69852.0,0.000924]
[1722257151050,0.2894,69853.0,69852.0,0.000924]
[1722257151251,0.54153939,69853.0,69852.0,0.000924]
[1722257151496,0.71936325,69853.0,69852.0,0.000924]
[1722257151708,0.71936496,69853.0,69852.0,0.000924]
[1722257151932,0.62349013,69853.0,69852.0,0.000924]
[1722257152160,0.83069013,69853.0,69852.0,0.000924]
[1722257152703,0.83117966,69853.0,69852.0,0.000924]
[1722257152929,0.83118057,69853.0,69852.0,0.000924]
[1722257153156,0.83118079,69853.0,69852.0,0.000924]
[1722257153376,0.83118102,69853.0,69852.0,0.000924]
[1722257153607,0.93832423,69853.0,69852.0,0.000924]
[1722257153845,0.83118102,69853.0,69852.0,0.000924]
[1722257154057,0.93932423,69853.0,69852.0,0.014924]
[1722257154294,0.83218102,69853.0,69852.0,0.014924]
[1722257154522,0.85464879,69853.0,69852.0,0.014924]
[1722257154757,0.961792,69853.0,69852.0,0.014924]
[1722257154963,1.044492,69853.0,69852.0,0.014924]
[1722257155190,1.04434673,69853.0,69852.0,0.014924]
[1722257155452,0.9372357,69853.0,69852.0,0.005924]
[1722257155910,1.04434673,69853.0,69852.0,0.005924]
[1722257156139,0.0113,69851.0,69840.0,0.0867]
[1722257156374,0.2072,69842.0,69840.0,0.0867]
[1722257156623,0.24309939,69841.0,69840.0,0.0867]
[1722257157279,0.26556914,69841.0,69840.0,0.087624]
[1722257158801,0.26556914,69841.0,69840.0,0.037624]
[1722257158802,0.26812334,69841.0,69840.0,0.037624]
[1722257159658,0.24565359,69841.0,69840.0,0.045624]
[1722257160332,0.24565359,69841.0,69840.0,0.000924]
[1722257160577,0.33169359,69841.0,69840.0,0.014924]
[1722257160827,0.68189359,69841.0,69832.0,0.0367]
[1722257161053,0.2072,69835.0,69833.0,0.0367]
[1722257161277,0.08604,69838.0,69828.0,0.0622]
[1722257161278,0.45029939,69834.0,69832.0,0.0367]
[1722257161714,0.45029939,69834.0,69828.0,0.0622]
[1722257161936,0.45029939,69834.0,69832.0,0.0367]
[1722257162817,0.47277186,69834.0,69832.0,0.0367]
[1722257163026,0.47277186,69834.0,69830.0,0.0367]
[1722257163978,0.47277186,69834.0,69832.0,0.006]
[1722257163979,0.47377186,69834.0,69832.0,0.006]
[1722257164218,0.45129939,69834.0,69832.0,0.006]
[1722257164437,0.45129939,69834.0,69830.0,0.0367]
[1722257164438,0.45029939,69834.0,69830.0,0.0367]
[1722257164892,0.45129939,69834.0,69830.0,0.006]
[1722257165123,0.08604,69832.0,69830.0,0.006]
[1722257165339,0.22913939,69831.0,69830.0,0.006]
[1722257165576,0.35213939,69831.0,69830.0,0.006]
[1722257166513,0.2072,69824.0,69823.0,0.008866]
[1722257166751,0.45029939,69824.0,69823.0,0.008866]
[1722257167439,0.47277511,69824.0,69823.0,0.008866]
[1722257168343,0.47277511,69824.0,69823.0,0.016866]
[1722257168552,0.47377511,69824.0,69823.0,0.016866]
[1722257168798,0.47477511,69824.0,69823.0,0.016866]
[1722257170503,0.55217511,69824.0,69823.0,0.016866]
[1722257170731,0.55217511,69824.0,69823.0,0.008866]
[1722257170732,0.47377511,69824.0,69823.0,0.008866]
[1722257171141,0.47477511,69824.0,69823.0,0.008866]
[1722257172405,0.26757511,69824.0,69823.0,0.187266]
[1722257173447,0.12447572,69824.0,69823.0,0.187266]
[1722257173648,0.03259833,69824.0,69823.0,0.187266]
[1722257174068,0.03159833,69824.0,69823.0,0.187266]
[1722257174280,0.001,69824.0,69823.0,0.187266]
[1722257174486,0.001,69824.0,69823.0,0.195266]
[1722257174487,0.002,69824.0,69823.0,0.195266]
[1722257174691,0.001,69824.0,69823.0,0.195266]
[1722257174899,0.08604,69845.0,69824.0,0.0632]
[1722257175108,0.14309939,69844.0,69824.0,0.0632]
[1722257175319,0.14309939,69844.0,69839.0,0.0367]
[1722257175727,0.1,69843.0,69839.0,0.0367]
[1722257175993,0.14309939,69842.0,69839.0,0.0367]
[1722257176223,0.3072,69841.0,69834.0,0.0367]
[1722257176449,0.08604,69839.0,69834.0,0.0367]
[1722257176695,0.14465359,69838.0,69834.0,0.0357]
[1722257176934,0.1,69837.0,69834.0,0.0357]
[1722257177164,0.14465359,69836.0,69834.0,0.0357]
[1722257177397,0.1,69835.0,69834.0,0.0357]
[1722257177620,0.24309939,69835.0,69834.0,0.0357]
[1722257179457,0.45029939,69835.0,69829.0,0.0969]
[1722257179678,0.39424,69835.0,69834.0,0.009]
[1722257179897,0.41724,69835.0,69834.0,0.009]
[1722257180117,0.56033939,69835.0,69834.0,0.009]
[1722257180563,0.56033939,69835.0,69834.0,0.006]
[1722257181027,0.59566753,69835.0,69834.0,0.006]
[1722257181472,0.08604,69832.0,69821.0,0.1002]
[1722257181689,0.2072,69826.0,69822.0,0.0357]
[1722257181903,0.2072,69826.0,69821.0,0.0645]
[1722257181904,0.24309939,69825.0,69824.0,0.0357]
[1722257182117,0.14309939,69825.0,69824.0,0.0357]
[1722257182332,0.24309939,69825.0,69824.0,0.0357]
[1722257183086,0.24309939,69825.0,69823.0,0.010866]
[1722257183444,0.1,69824.0,69823.0,0.003866]
[1722257183645,0.24309939,69824.0,69823.0,0.003866]
[1722257185424,0.24309939,69824.0,69823.0,0.006866]
[1722257185860,0.24309939,69824.0,69823.0,0.003866]
[1722257186237,0.24309939,69824.0,69823.0,0.039566]
[1722257186445,0.24309939,69824.0,69823.0,0.047566]
[1722257186446,0.24409939,69824.0,69823.0,0.047566]
[1722257187223,0.24409939,69824.0,69823.0,0.056566]
[1722257187649,0.24409939,69824.0,69823.0,0.047566]
[1722257188275,0.26657404,69824.0,69823.0,0.047566]
[1722257189169,0.26757404,69824.0,69823.0,0.056566]
[1722257190592,0.26757404,69824.0,69823.0,0.120966]
[1722257190901,0.26757404,69824.0,69818.0,0.14854355]
[1722257190902,0.26757404,69824.0,69818.0,0.01702055]
[1722257191089,0.14309939,69823.0,69818.0,0.01702055]
[1722257191307,0.1011474,69822.0,69818.0,0.01702055]
[1722257191534,0.24424679,69822.0,69818.0,0.01702055]
[1722257191755,0.24424679,69822.0,69811.0,0.07154355]
[1722257194041,0.24424679,69822.0,69816.0,0.1408]
[1722257194280,0.14309939,69821.0,69816.0,0.1408]
[1722257194511,0.1015542,69820.0,69816.0,0.1408]
[1722257194753,0.14309939,69819.0,69816.0,0.1408]
[1722257194986,0.0015542,69818.0,69816.0,0.1408]
[1722257195220,0.14309939,69817.0,69816.0,0.0656]
[1722257196595,0.16557458,69817.0,69816.0,0.0656]
[1722257196823,0.14309939,69817.0,69816.0,0.0656]
[1722257197056,0.16557458,69817.0,69816.0,0.0656]
[1722257197303,0.16557458,69817.0,69811.0,0.0659]
[1722257197745,0.14409939,69817.0,69811.0,0.0659]
[1722257198195,0.1,69816.0,69811.0,0.0659]
[1722257198602,0.24309939,69816.0,69811.0,0.0659]
[1722257199259,0.24309939,69816.0,69815.0,0.001924]
[1722257200818,0.26557547,69816.0,69815.0,0.001924]
[1722257201039,0.26657547,69816.0,69815.0,0.001924]
[1722257201783,0.02347608,69816.0,69815.0,0.145124]
[1722257202018,0.02447608,69816.0,69815.0,0.146124]
[1722257202759,0.002,69816.0,69815.0,0.14898807]
[1722257203424,0.002,69816.0,69815.0,0.146124]
[1722257205309,0.02447435,69816.0,69815.0,0.146124]
[1722257207300,0.002,69816.0,69815.0,0.146124]
[1722257208574,0.14509939,69816.0,69815.0,0.146124]
[1722257209216,0.002,69816.0,69815.0,0.065624]
[1722257210630,0.02447498,69816.0,69815.0,0.065624]
[1722257215717,0.002,69816.0,69815.0,0.065624]
[1722257223218,0.002,69816.0,69815.0,0.06848821]
[1722257223433,0.002,69816.0,69815.0,0.54035321]
[1722257223434,0.02447478,69816.0,69815.0,0.54035321]
[1722257223619,0.02447478,69816.0,69815.0,0.31562242]
[1722257223976,0.02447478,69816.0,69815.0,0.48021042]
[1722257224186,0.02447478,69816.0,69815.0,0.42734621]
[1722257224402,0.002,69816.0,69815.0,0.42734621]
[1722257224821,0.002,69816.0,69815.0,0.31275821]
[1722257225036,0.002,69816.0,69815.0,0.26275821]
[1722257226742,0.002,69816.0,69815.0,0.26275693]
[1722257227825,0.02447415,69816.0,69815.0,0.14658795]
[1722257228622,0.02447415,69816.0,69815.0,0.143724]
[1722257229650,0.02447415,69816.0,69815.0,0.065624]
[1722257232050,0.02447415,69816.0,69815.0,0.06848809]
[1722257234213,0.02447415,69816.0,69815.0,0.147524]
[1722257234441,0.02447415,69816.0,69815.0,0.26656346]
[1722257236232,0.02447415,69816.0,69815.0,0.147524]
[1722257236459,0.02447415,69816.0,69815.0,0.26655848]
[1722257236725,0.002,69816.0,69815.0,0.26655848]
[1722257236924,0.002,69816.0,69815.0,0.26655649]
[1722257237365,0.002,69816.0,69815.0,0.26655904]
[1722257237990,0.002,69816.0,69815.0,0.147524]
[1722257238196,0.002,69816.0,69815.0,0.26655937]
[1722257238651,0.002,69816.0,69815.0,0.26656085]
[1722257239079,0.002,69816.0,69815.0,0.147524]
[1722257240200,0.0244737,69816.0,69815.0,0.147524]
[1722257240416,0.0244737,69816.0,69815.0,0.15038798]
[1722257241325,0.0244737,69816.0,69815.0,0.26942487]
[1722257241546,0.0244737,69816.0,69815.0,0.12382487]
[1722257242403,0.0244737,69816.0,69815.0,0.00478798]
[1722257242603,0.0244737,69816.0,69815.0,0.123825]
[1722257244727,0.0244737,69816.0,69815.0,0.262625]
[1722257245770,0.0244737,69816.0,69815.0,0.26262219]
[1722257246186,0.0244737,69816.0,69815.0,0.14358798]
[1722257246406,0.0244737,69816.0,69815.0,0.26262432]
[1722257248173,0.0244737,69816.0,69815.0,0.14358798]
[1722257248375,0.0244737,69816.0,69815.0,0.26262498]
[1722257248916,0.0244737,69816.0,69815.0,0.26262201]
[1722257249130,0.002,69816.0,69815.0,0.26262201]
[1722257249595,0.002,69816.0,69815.0,0.26262411]
[1722257250743,0.002,69816.0,69815.0,0.14358798]
[1722257251436,0.002,69816.0,69815.0,0.06648798]
[1722257252601,0.02447413,69816.0,69815.0,0.06648798]
[1722257254056,0.02447413,69816.0,69815.0,0.001924]
[1722257254505,0.002,69816.0,69815.0,0.001924]
[1722257255430,0.01027898,69816.0,69815.0,0.001924]
[1722257255679,0.002,69816.0,69815.0,0.001924]
[1722257257587,0.02447516,69816.0,69815.0,0.001924]
[1722257258315,0.002,69816.0,69815.0,0.001924]
[1722257259727,0.1475,69816.0,69815.0,0.001924]
[1722257259885,0.52096691,69816.0,69815.0,0.001924]
[1722257260086,0.41344227,69816.0,69815.0,0.001924]
[1722257260291,0.52094992,69816.0,69815.0,0.001924]
[1722257260712,0.51994992,69816.0,69815.0,0.001924]
[1722257260910,0.66304931,69816.0,69815.0,0.001924]
[1722257261318,0.68549571,69816.0,69815.0,0.001924]
[1722257261515,0.63742164,69816.0,69815.0,0.001924]
[1722257261720,0.66297806,69816.0,69815.0,0.001924]
[1722257262495,0.66197806,69816.0,69815.0,0.000924]
[1722257263097,0.55450187,69816.0,69815.0,0.000924]
[1722257263303,0.66195005,69816.0,69815.0,0.000924]
[1722257264008,0.66295005,69816.0,69815.0,0.000924]
[1722257264611,0.50746739,69816.0,69815.0,0.000924]
[1722257264821,0.66259834,69816.0,69815.0,0.000924]
[1722257265028,0.66258086,69816.0,69815.0,0.000924]
[1722257265230,0.50846739,69816.0,69815.0,0.001924]
[1722257265430,0.57866417,69816.0,69815.0,0.001924]
[1722257265874,0.57766417,69816.0,69815.0,0.001924]
[1722257266278,0.66454767,69816.0,69815.0,0.001924]
[1722257266618,0.64206867,69816.0,69815.0,0.001924]
[1722257267281,0.24908947,69816.0,69815.0,0.001924]
[1722257267486,0.22762014,69816.0,69815.0,0.001924]
[1722257267836,0.002,69816.0,69815.0,0.147324]
[1722257268456,0.0849,69816.0,69815.0,0.147324]
[1722257269785,0.10737649,69816.0,69815.0,0.147324]
[1722257269988,0.20737649,69816.0,69815.0,0.147324]
[1722257270607,0.1849,69816.0,69815.0,0.147324]
[1722257271045,0.1849,69816.0,69815.0,0.066624]
[1722257271237,0.002,69816.0,69815.0,0.066624]
[1722257271452,0.102,69816.0,69815.0,0.066624]
[1722257272637,0.002,69816.0,69815.0,0.066624]
[1722257273975,0.02447648,69816.0,69815.0,0.066624]
[1722257274183,0.002,69816.0,69815.0,0.066624]
[1722257275025,0.002,69816.0,69815.0,0.143524]
[1722257275287,0.002,69816.0,69815.0,0.56866443]
[1722257275506,0.002,69816.0,69815.0,1.35776744]
[1722257275726,0.002,69816.0,69815.0,1.35976744]
[1722257276441,0.001,69816.0,69815.0,1.35976744]
[1722257276652,0.001,69816.0,69815.0,1.13059044]
[1722257277317,0.001,69816.0,69815.0,1.01156539]
[1722257277555,0.001,69816.0,69815.0,1.13057843]
[1722257277801,0.02447097,69816.0,69815.0,1.13057843]
[1722257278464,0.002,69816.0,69815.0,1.13057843]
[1722257278737,0.001,69816.0,69815.0,1.12957843]
[1722257279156,0.001,69816.0,69815.0,1.12757843]
[1722257279582,0.001,69816.0,69815.0,0.52612504]
[1722257279786,0.001,69816.0,69815.0,0.536289]
[1722257280005,0.00084,69818.0,69817.0,0.164585]
[1722257280230,0.00084,69818.0,69817.0,0.331085]
[1722257280466,0.00084,69818.0,69817.0,0.47418439]
[1722257280690,0.00084,69818.0,69817.0,1.01392439]
[1722257281127,0.00084,69818.0,69817.0,1.13294209]
[1722257281350,0.02331107,69818.0,69817.0,1.13294209]
[1722257281767,0.00084,69818.0,69817.0,1.13294209]
[1722257282392,0.00084,69818.0,69817.0,1.01392439]
[1722257282584,0.00084,69818.0,69817.0,0.78475439]
[1722257283066,0.00084,69818.0,69817.0,0.68475439]
[1722257283285,0.00184,69818.0,69817.0,0.69775439]
[1722257283502,0.00184,69818.0,69817.0,1.09775439]
[1722257284386,0.00284,69818.0,69817.0,1.10575439]
[1722257285142,0.02531143,69818.0,69817.0,0.962655]
[1722257285780,0.02531143,69818.0,69817.0,0.5189]
[1722257285991,0.02531143,69818.0,69817.0,0.021]
[1722257286209,0.00284,69818.0,69817.0,0.021]
[1722257286711,0.00284,69818.0,69817.0,0.02386403]
[1722257286932,0.00284,69818.0,69817.0,0.07386403]
[1722257287141,0.00284,69818.0,69817.0,0.02386403]
[1722257287577,0.00284,69818.0,69817.0,0.07386403]
[1722257288003,0.00284,69818.0,69817.0,0.88618903]
[1722257288208,0.00284,69818.0,69817.0,1.02642439]
[1722257288420,0.00284,69818.0,69817.0,1.02734839]
[1722257288629,0.00284,69818.0,69817.0,1.25851839]
[1722257288833,0.00284,69818.0,69817.0,1.37753255]
[1722257289053,0.00284,69818.0,69817.0,1.25851839]
[1722257289468,0.02531084,69818.0,69817.0,1.37753141]
[1722257290373,0.02531084,69818.0,69817.0,1.47753141]
[1722257290591,0.02531084,69818.0,69817.0,1.50053141]
[1722257292122,0.02531084,69818.0,69817.0,1.50052443]
[1722257292338,0.00284,69818.0,69817.0,1.50052443]
[1722257292547,0.00084,69844.0,69836.0,0.114552]
[1722257292759,0.00084,69844.0,69836.0,0.114553]
[1722257292980,0.00084,69844.0,69837.0,0.114552]
[1722257293394,0.00084,69844.0,69836.0,0.114553]
[1722257293615,0.00084,69844.0,69835.0,0.05]
[1722257293834,0.00084,69844.0,69833.0,0.114557]
[1722257294051,0.00084,69844.0,69835.0,0.05]
[1722257294474,0.0015542,69843.0,69835.0,0.05]
[1722257294888,0.0015542,69843.0,69833.0,0.05]
[1722257295100,0.0015542,69843.0,69833.0,0.164558]
[1722257295559,0.02246773,69841.0,69833.0,0.164558]
[1722257295777,0.02246773,69841.0,69835.0,0.07154355]
[1722257295778,0.0015542,69840.0,69835.0,0.07154355]
[1722257295980,0.02246773,69841.0,69835.0,0.07154355]
[1722257296214,0.00124191,69840.0,69836.0,0.0028633]
[1722257296440,0.00084,69844.0,69843.0,0.343627]
[1722257296665,0.00084,69844.0,69843.0,0.31738555]
[1722257296882,0.00084,69844.0,69843.0,0.41738555]
[1722257297107,0.00084,69844.0,69843.0,0.31738555]
[1722257297326,0.00084,69844.0,69843.0,0.1313]
[1722257297762,0.00084,69844.0,69843.0,0.245842]
[1722257298246,0.00084,69844.0,69843.0,0.1313]
[1722257298458,0.00084,69844.0,69843.0,0.245842]
[1722257298667,0.00084,69844.0,69843.0,0.1313]
[1722257299088,0.00084,69844.0,69840.0,0.113]
[1722257299304,0.0015542,69843.0,69836.0,0.063]
[1722257299728,0.0015542,69843.0,69836.0,0.177553]
[1722257300417,0.0015542,69843.0,69837.0,0.00286324]
[1722257300889,0.0015542,69843.0,69837.0,0.11741424]
[1722257301114,0.0015542,69843.0,69836.0,0.113]
[1722257301115,0.0015542,69843.0,69836.0,0.227553]
[1722257301339,0.0015542,69843.0,69836.0,0.113]
[1722257302218,0.0015542,69843.0,69832.0,0.05]
[1722257302431,0.0829,69842.0,69832.0,0.05]
[1722257302630,0.0015542,69841.0,69836.0,0.011]
[1722257302837,0.0015542,69841.0,69832.0,0.05]
[1722257303289,0.0015542,69841.0,69830.0,0.0618]
[1722257303491,0.0015542,69841.0,69827.0,0.818]
[1722257303492,0.0648,69840.0,69827.0,0.818]
[1722257303706,0.02402206,69839.0,69827.0,0.818]
[1722257303920,0.02402206,69839.0,69827.0,0.768]
[1722257304127,0.0015542,69839.0,69827.0,0.818]
[1722257305764,0.0015542,69839.0,69827.0,0.832]
[1722257306424,0.0015542,69839.0,69827.0,0.482]
[1722257306643,0.0804,69838.0,69827.0,0.482]
[1722257306863,0.0015542,69837.0,69827.0,0.482]
[1722257307305,0.02246926,69835.0,69827.0,0.782]
[1722257307523,0.0015542,69834.0,69827.0,0.482]
[1722257307965,0.0015542,69837.0,69827.0,0.482]
[1722257308187,0.0015542,69837.0,69827.0,0.014]
[1722257308609,0.0015542,69837.0,69827.0,0.028]
[1722257308820,0.0015542,69837.0,69827.0,0.014]
[1722257309036,0.0015542,69837.0,69821.0,0.0639]
[1722257309245,0.0015542,69837.0,69827.0,0.014]
[1722257309683,0.0015542,69837.0,69835.0,0.07154355]
[1722257309897,0.0015542,69837.0,69832.0,0.00286352]
[1722257310116,0.0015542,69837.0,69836.0,0.07440707]
[1722257310325,0.0015542,69837.0,69836.0,0.07440686]
[1722257311703,0.02402163,69837.0,69836.0,0.07440686]
[1722257311919,0.02246743,69837.0,69836.0,0.07154355]
[1722257312160,0.02246743,69837.0,69836.0,0.85787683]
[1722257312385,0.02246743,69837.0,69836.0,0.83320555]
[1722257312632,0.001,69838.0,69837.0,0.393656]
[1722257313207,0.001,69838.0,69837.0,0.62276]
[1722257313671,0.001,69838.0,69837.0,0.393656]
[1722257314088,0.001,69838.0,69837.0,0.60434415]
[1722257314519,0.00084,69844.0,69843.0,0.3]
[1722257315585,0.00084,69844.0,69843.0,0.414542]
[1722257315784,0.00084,69844.0,69843.0,0.426542]
[1722257316549,0.0233058,69844.0,69843.0,0.426542]
[1722257316773,0.00084,69844.0,69843.0,0.426542]
[1722257316982,0.00084,69844.0,69843.0,0.312]
[1722257318343,0.00084,69844.0,69843.0,0.426542]
[1722257318574,0.00084,69844.0,69843.0,0.312]
[1722257319333,0.00084,69844.0,69843.0,0.426542]
[1722257319543,0.00084,69844.0,69843.0,0.312]
[1722257320003,0.00084,69844.0,69843.0,0.426542]
[1722257320331,0.00084,69844.0,69843.0,0.312]
[1722257321180,0.00084,69844.0,69843.0,0.426542]
[1722257321561,0.00084,69844.0,69843.0,0.373]
[1722257322671,0.00084,69844.0,69843.0,0.312]
[1722257327991,0.02330558,69844.0,69843.0,0.312]
[1722257330286,0.02430558,69844.0,69843.0,0.326]
[1722257332030,0.00184,69844.0,69843.0,0.326]
[1722257332860,0.00184,69844.0,69843.0,0.314]
[1722257333383,0.00184,69844.0,69843.0,0.589542]
[1722257333584,0.00184,69844.0,69843.0,0.930227]
[1722257334020,0.00184,69844.0,69843.0,0.701142]
[1722257335543,0.02430503,69844.0,69843.0,0.944227]
[1722257335775,0.00184,69844.0,69843.0,0.715142]
[1722257335977,0.00184,69844.0,69843.0,0.944227]
[1722257336266,0.00184,69844.0,69843.0,0.715142]
[1722257336886,0.00084,69844.0,69843.0,0.701142]
[1722257337710,0.00084,69844.0,69843.0,0.930227]
[1722257338326,0.00084,69844.0,69843.0,1.04921037]
[1722257338732,0.02330492,69844.0,69843.0,1.04921037]
[1722257338936,0.02330492,69844.0,69843.0,0.82012537]
[1722257339264,0.02330492,69844.0,69843.0,0.83412537]
[1722257339468,0.02330492,69844.0,69843.0,0.66958337]
[1722257339668,0.02330492,69844.0,69843.0,0.70592537]
[1722257340097,0.02330492,69844.0,69843.0,0.93501037]
[1722257340298,0.02330492,69844.0,69843.0,0.70592537]
[1722257340627,0.00084,69844.0,69843.0,0.70592537]
[1722257341507,0.00084,69844.0,69843.0,2.16960831]
[1722257341720,0.00084,69844.0,69843.0,2.44561148]
[1722257341941,0.00084,69844.0,69843.0,2.62755567]
[1722257342156,0.00084,69844.0,69843.0,2.68703277]
[1722257342399,0.00084,69844.0,69843.0,2.61159436]
[1722257342612,0.0015542,69854.0,69853.0,1.502882]
[1722257342821,0.0015542,69854.0,69853.0,1.97875124]
[1722257343034,0.0015542,69854.0,69853.0,2.17018062]
[1722257343249,0.00714,69867.0,69866.0,0.393513]
[1722257343443,0.00714,69867.0,69866.0,0.343513]
[1722257343989,0.00714,69867.0,69866.0,0.393513]
[1722257344238,0.00714,69867.0,69866.0,0.164504]
[1722257344706,0.00714,69867.0,69866.0,0.393513]
[1722257344905,0.00714,69867.0,69866.0,0.622522]
[1722257345165,0.00714,69867.0,69866.0,0.393513]
[1722257347313,0.00714,69867.0,69866.0,0.736522]
[1722257347764,0.00714,69867.0,69866.0,0.814822]
[1722257348600,0.00714,69867.0,69866.0,1.17293039]
[1722257348826,0.00714,69867.0,69866.0,1.45973039]
[1722257349048,0.00714,69867.0,69866.0,1.57866353]
[1722257350100,0.00714,69867.0,69866.0,1.58066353]
[1722257351535,0.00714,69867.0,69866.0,1.58065741]
[1722257352171,0.00714,69867.0,69866.0,1.58065728]
[1722257352382,0.00714,69867.0,69866.0,1.23072139]
[1722257352999,0.00714,69867.0,69866.0,1.13072139]
[1722257353284,0.00714,69867.0,69866.0,1.46173039]
[1722257353494,0.00714,69867.0,69866.0,1.61765565]
[1722257354119,0.00714,69867.0,69866.0,1.60364178]
[1722257354528,0.00714,69867.0,69866.0,1.49873039]
[1722257354735,0.00714,69867.0,69866.0,1.84665185]
[1722257354945,0.00714,69867.0,69866.0,1.83265185]